bitfinex/quotes_ETHUSD_20250428
["timestamp","ask_amount","ask_price","bid_price","bid_amount"]
[1745805603250,3.0,1766.7,1766.5,3.79362614]
[1745805603463,0.64663679,1766.6,1766.5,3.79362614]
[1745805603618,0.960837,1766.6,1766.5,3.79362614]
[1745805603812,0.31420021,1766.6,1766.5,3.79362614]
[1745805606300,0.86420021,1766.6,1766.5,3.79362614]
[1745805606555,1.2820031,1766.6,1766.5,3.79362614]
[1745805607061,1.2820031,1766.6,1766.1,3.79362614]
[1745805607258,0.960837,1766.5,1766.1,3.79362614]
[1745805607425,5.502,1766.4,1766.1,3.79362614]
[1745805608336,6.14863679,1766.4,1766.1,3.79362614]
[1745805608530,0.64663679,1766.2,1766.1,3.79362614]
[1745805608857,9.70663679,1766.2,1766.1,3.79362614]
[1745805609245,6.37242371,1766.2,1766.1,3.79362614]
[1745805609459,0.31242371,1766.2,1766.1,3.79362614]
[1745805610249,0.31242371,1766.4,1766.1,3.79362614]
[1745805611249,6.37242371,1766.4,1766.1,3.79362614]
[1745805611842,0.31242371,1766.3,1766.1,3.79362614]
[1745805612642,3.9590605,1766.3,1766.1,3.79362614]
[1745805612964,5.503,1766.2,1766.1,3.79362614]
[1745805613542,3.0,1766.1,1765.3,1.4688]
[1745805613836,0.64663679,1766.0,1765.3,1.4688]
[1745805614067,6.47958874,1766.1,1765.3,1.4688]
[1745805614270,0.41780289,1766.6,1765.1,3.0]
[1745805614271,0.31242371,1766.0,1765.6,0.64663679]
[1745805614442,0.31242371,1766.0,1765.7,1.5419]
[1745805615239,5.503,1766.4,1765.7,1.5419]
[1745805617769,5.503,1766.4,1765.8,0.10678614]
[1745805617770,0.31166518,1766.3,1765.8,0.10678614]
[1745805619881,0.64663679,1766.2,1765.8,0.10678614]
[1745805620260,0.64663679,1766.2,1765.4,5.504]
[1745805620779,0.95830197,1766.2,1765.4,5.504]
[1745805621182,3.0,1766.1,1765.4,5.504]
[1745805621573,5.504,1766.0,1765.4,5.504]
[1745805621747,0.31166518,1765.9,1765.4,5.504]
[1745805622079,3.31166518,1765.9,1765.1,1.4398]
[1745805622394,0.95830197,1765.8,1765.1,1.4398]
[1745805623278,0.31166518,1765.8,1765.1,2.13418]
[1745805624688,0.31166518,1765.8,1765.1,2.78081679]
[1745805625249,0.31166518,1765.8,1765.1,1.4398]
[1745805626087,0.95830197,1765.8,1765.1,1.4398]
[1745805629773,0.95830197,1765.8,1765.0,5.504]
[1745805630376,0.31166518,1765.7,1765.0,5.504]
[1745805630590,0.31166518,1765.7,1765.3,0.64663679]
[1745805630960,0.31166518,1765.7,1765.4,1.512]
[1745805631490,0.31166518,1765.9,1765.4,1.512]
[1745805631998,0.31166518,1765.9,1765.6,1.512]
[1745805632287,0.31166518,1766.2,1765.7,0.64663679]
[1745805632983,0.31166518,1766.2,1765.9,0.64663679]
[1745805633191,0.31166518,1766.4,1765.9,0.64663679]
[1745805634153,0.31166518,1766.4,1765.8,2.15303679]
[1745805634558,0.31166518,1766.4,1765.8,5.15303679]
[1745805634885,0.31166518,1766.5,1765.8,10.55995638]
[1745805635191,0.31166518,1766.5,1766.2,0.64663679]
[1745805635581,0.31166518,1766.8,1766.2,0.64663679]
[1745805635783,0.31166518,1766.8,1766.1,1.5064]
[1745805636293,3.95830197,1766.7,1765.8,5.495]
[1745805636462,3.0,1766.5,1765.8,5.495]
[1745805636797,3.0,1766.5,1765.8,6.19044]
[1745805637098,0.31166518,1766.4,1765.8,6.19044]
[1745805637905,0.64663679,1766.3,1765.5,1.4594]
[1745805638057,0.64663679,1766.1,1765.3,7.60003679]
[1745805638262,0.64663679,1766.1,1765.3,6.9534]
[1745805639003,0.31166518,1766.0,1765.3,6.9534]
[1745805639797,0.31166518,1765.9,1765.3,6.9534]
[1745805640095,0.31166518,1765.9,1765.3,7.64874]
[1745805641596,0.31166518,1765.9,1765.3,6.18934]
[1745805641821,7.01830197,1765.9,1765.1,1.5088]
[1745805642029,5.494,1765.8,1765.1,1.5088]
[1745805642315,5.494,1765.8,1764.9,5.494]
[1745805642316,3.64663679,1765.7,1764.9,5.494]
[1745805642477,0.31166518,1765.6,1764.9,5.494]
[1745805642679,0.31166518,1765.6,1764.9,6.19428]
[1745805643600,0.31166518,1765.5,1764.9,6.19428]
[1745805644419,0.31166518,1765.6,1764.9,6.19428]
[1745805645180,0.31166518,1765.6,1765.1,0.64663679]
[1745805645417,0.31166518,1765.6,1765.1,2.17833679]
[1745805645713,0.31166518,1765.6,1765.2,0.10990749]
[1745805645910,0.31166518,1765.6,1765.1,1.5317]
[1745805646111,0.31166518,1765.6,1765.2,0.64663679]
[1745805646415,0.31166518,1765.8,1765.2,0.11452631]
[1745805646911,3.31166518,1765.8,1765.2,0.11452631]
[1745805647216,5.80666518,1765.7,1765.2,0.11452631]
[1745805647616,5.80666518,1765.7,1765.0,0.64663679]
[1745805647921,5.495,1765.6,1765.0,1.48358847]
[1745805648080,0.31166518,1765.5,1765.1,0.11452631]
[1745805649102,0.31166518,1765.7,1765.1,0.11452631]
[1745805649286,0.52131086,1765.4,1765.1,0.11452631]
[1745805650107,0.52131086,1765.3,1765.1,0.11452631]
[1745805651312,0.52131086,1765.2,1765.1,0.11452631]
[1745805653043,0.52131086,1765.2,1765.1,0.7611631]
[1745805653816,0.52131086,1765.2,1765.1,0.11452631]
[1745805655027,0.52131086,1765.2,1765.1,0.7611631]
[1745805658329,0.52131086,1765.2,1765.1,2.2851631]
[1745805658534,0.31166518,1765.6,1765.1,2.2851631]
[1745805658535,0.31166518,1765.6,1765.2,1.524]
[1745805658735,0.31166518,1765.6,1765.5,2.17063679]
[1745805658938,0.31166518,1766.0,1765.5,2.17063679]
[1745805659425,0.31166518,1766.0,1765.6,0.11177916]
[1745805659793,5.80766518,1766.3,1765.6,0.11177916]
[1745805660431,0.31166518,1766.2,1765.6,0.11177916]
[1745805662248,0.31166518,1766.2,1766.1,0.64663679]
[1745805662590,0.31166518,1766.5,1766.1,0.75542026]
[1745805663015,0.31166518,1766.5,1766.3,0.64663679]
[1745805663240,0.31166518,1766.5,1766.4,0.10672489]
[1745805663733,0.31166518,1766.8,1766.4,0.10672489]
[1745805664594,0.31166518,1766.9,1766.2,1.4379]
[1745805664789,0.31166518,1766.9,1766.3,0.10672489]
[1745805668125,0.31166518,1766.9,1766.3,0.75336168]
[1745805668355,0.31166518,1766.9,1766.5,0.64663679]
[1745805668495,0.31166518,1766.9,1766.7,0.64663679]
[1745805669009,3.4,1767.0,1766.7,0.64663679]
[1745805669828,3.4,1767.0,1766.6,1.4908]
[1745805670232,3.4,1767.0,1766.5,5.483]
[1745805670433,3.64663679,1766.9,1766.2,1.459]
[1745805670730,0.64663679,1766.7,1766.0,1.459]
[1745805670928,3.64663679,1766.7,1765.8,6.9072]
[1745805671130,0.64663679,1766.5,1765.8,6.9072]
[1745805671438,0.64663679,1766.3,1766.0,3.79362614]
[1745805671633,0.55,1766.4,1766.0,3.79362614]
[1745805671934,3.0,1766.3,1766.0,3.79362614]
[1745805672498,0.3110952,1766.2,1766.0,3.79362614]
[1745805672711,0.51845526,1766.1,1766.0,3.79362614]
[1745805674535,3.51845526,1766.1,1766.0,3.79362614]
[1745805674730,3.51845526,1766.1,1765.4,5.482]
[1745805674932,3.82955046,1766.1,1765.5,0.5482]
[1745805675124,9.31155046,1766.1,1765.5,0.5482]
[1745805675737,0.3110952,1766.0,1765.5,0.5482]
[1745805676100,0.51845526,1765.9,1765.5,0.5482]
[1745805677238,0.51845526,1765.9,1765.6,1.4816]
[1745805677902,0.51845526,1765.9,1765.5,0.5482]
[1745805678236,0.51845526,1765.9,1765.4,7.0517]
[1745805678415,3.0,1766.1,1765.4,7.0517]
[1745805678416,0.51845526,1766.0,1765.4,7.0517]
[1745805679729,0.82977042,1766.0,1765.4,7.0517]
[1745805679929,0.51845526,1765.9,1765.4,7.0517]
[1745805681647,0.51845526,1765.8,1765.4,7.0517]
[1745805681825,0.51845526,1765.8,1765.5,0.70517]
[1745805682655,0.51845526,1765.9,1765.5,0.70517]
[1745805684057,0.51845526,1766.0,1765.5,0.70517]
[1745805684859,0.51845526,1766.0,1765.8,3.20508208]
[1745805685262,0.51845526,1766.0,1765.9,1.5145]
[1745805685428,0.51845526,1766.0,1765.9,1.98645821]
[1745805685935,0.51845526,1766.5,1765.9,1.98359468]
[1745805686258,0.51845526,1766.5,1765.9,7.46659468]
[1745805686433,0.51845526,1766.5,1766.0,3.20508208]
[1745805686761,0.51845526,1766.5,1766.2,3.20508208]
[1745805686966,0.83045378,1766.9,1766.4,3.20508208]
[1745805687938,0.51845526,1766.8,1766.4,3.20508208]
[1745805688761,0.51845526,1766.8,1766.4,3.62982532]
[1745805689064,0.51845526,1766.8,1766.4,4.5503]
[1745805689267,0.51845526,1766.9,1766.4,1.5503]
[1745805689571,0.83038437,1766.9,1766.3,5.483]
[1745805689754,3.83038437,1766.9,1766.0,1.4176]
[1745805689957,9.89038437,1766.9,1765.9,5.483]
[1745805690250,10.30964403,1766.9,1765.9,6.50508821]
[1745805690452,0.83038437,1766.8,1765.9,6.50508821]
[1745805691833,0.51845526,1766.7,1765.9,6.50508821]
[1745805692965,0.31192911,1766.8,1765.9,6.50508821]
[1745805692966,0.51845526,1766.6,1766.0,3.20508208]
[1745805693136,0.51845526,1766.6,1766.1,0.32050821]
[1745805693557,0.51845526,1766.6,1766.2,1.4753]
[1745805693755,0.83038437,1766.6,1766.2,4.68038208]
[1745805694267,0.31192911,1766.6,1766.2,4.68038208]
[1745805694573,0.31192911,1766.6,1766.5,1.4753]
[1745805694768,0.51845526,1766.9,1766.5,1.94333821]
[1745805695438,0.51845526,1766.9,1766.3,5.472]
[1745805695771,0.83045585,1766.9,1766.3,5.472]
[1745805695937,3.83045585,1766.9,1766.3,5.472]
[1745805696474,0.51845526,1766.8,1766.3,5.472]
[1745805696640,0.83039983,1766.8,1766.3,5.472]
[1745805697681,0.51845526,1766.7,1766.0,1.4753]
[1745805698374,9.57845526,1766.7,1765.9,5.472]
[1745805698681,3.0,1766.5,1765.6,3.79362614]
[1745805698881,3.0,1766.5,1765.6,4.72018875]
[1745805698882,3.0,1766.3,1765.6,4.72018875]
[1745805699243,0.31194457,1766.2,1765.6,4.72018875]
[1745805699939,0.31194457,1766.2,1765.6,0.92656261]
[1745805699940,0.51845526,1766.1,1765.6,0.92656261]
[1745805700144,0.51845526,1766.1,1765.7,1.5327]
[1745805700838,0.51845526,1766.1,1765.6,0.92656261]
[1745805701047,0.51845526,1766.0,1765.5,5.472]
[1745805701372,0.51845526,1766.0,1765.5,6.0192]
[1745805701563,0.51845526,1766.0,1765.7,3.20508208]
[1745805702152,0.51845526,1766.2,1765.7,3.20508208]
[1745805702485,0.51845526,1766.2,1765.5,6.0192]
[1745805702674,0.51845526,1766.2,1765.5,5.472]
[1745805703261,0.51845526,1766.1,1765.5,5.472]
[1745805703687,0.83039983,1766.1,1765.5,5.472]
[1745805704274,0.51845526,1766.0,1765.5,6.0192]
[1745805704474,0.51845526,1766.0,1765.6,1.4183]
[1745805705188,0.51845526,1766.0,1765.7,3.20508208]
[1745805706491,0.83116615,1766.4,1765.7,3.20508208]
[1745805707290,0.51845526,1766.3,1765.7,3.20508208]
[1745805707498,0.51845526,1766.3,1765.8,0.32050821]
[1745805707807,0.51845526,1766.3,1766.0,1.4275]
[1745805708103,0.51845526,1766.3,1766.1,3.20508208]
[1745805708604,0.51845526,1766.6,1766.1,3.20508208]
[1745805709370,0.51845526,1766.5,1766.1,3.20508208]
[1745805709573,0.51845526,1766.5,1766.3,1.5042]
[1745805709776,0.51845526,1766.5,1766.3,4.70928208]
[1745805711373,0.8313414,1766.9,1766.3,4.70928208]
[1745805711576,0.51845526,1766.9,1766.5,3.20508208]
[1745805711777,0.51845526,1766.9,1766.6,0.32050821]
[1745805712164,0.51845526,1766.9,1766.7,4.71308208]
[1745805712389,3.4,1767.0,1766.5,7.71308208]
[1745805714075,0.52131705,1766.9,1766.5,7.71308208]
[1745805714771,0.52131705,1766.9,1766.8,4.4988]
[1745805715199,0.83399733,1767.5,1766.8,4.4988]
[1745805715377,0.83399733,1767.5,1767.0,3.20508208]
[1745805715884,0.52131705,1767.5,1767.0,3.20508208]
[1745805717025,0.52131705,1767.5,1767.2,3.20508208]
[1745805717184,0.52131705,1767.5,1767.3,3.0]
[1745805717385,0.52131705,1767.5,1767.4,3.20508208]
[1745805717701,0.83379841,1768.0,1767.4,3.52559029]
[1745805717875,0.83379841,1768.0,1767.4,8.99559029]
[1745805718314,0.52131705,1768.0,1767.5,1.3744]
[1745805718509,0.52131705,1768.0,1767.6,3.20508208]
[1745805719511,3.4,1768.1,1767.6,3.20508208]
[1745805719687,3.4,1768.1,1767.6,3.66303029]
[1745805720927,3.4,1768.1,1767.8,1.4165]
[1745805722523,3.4,1768.1,1767.6,5.08773029]
[1745805723324,3.4,1768.1,1767.6,1.88264821]
[1745805723532,3.4,1768.1,1767.4,5.47]
[1745805724001,0.51836995,1768.0,1767.4,5.47]
[1745805725791,3.51836995,1768.0,1767.4,5.47]
[1745805726205,3.51836995,1768.0,1767.0,5.459]
[1745805726408,9.57836995,1768.0,1767.0,6.57388061]
[1745805726739,0.51836995,1767.9,1767.0,6.57388061]
[1745805727251,0.51836995,1767.9,1767.0,9.77896269]
[1745805727395,0.51836995,1767.9,1767.1,3.0]
[1745805727591,0.51836995,1767.9,1767.2,1.3789]
[1745805727798,0.51836995,1767.9,1767.2,4.58398208]
[1745805728093,0.51836995,1767.9,1767.3,0.45839821]
[1745805728722,6.06,1768.0,1767.3,0.45839821]
[1745805728895,6.06,1768.0,1767.2,1.3789]
[1745805729097,6.06,1768.0,1767.0,5.459]
[1745805729298,3.0,1767.9,1767.0,5.459]
[1745805729937,0.51810144,1767.8,1767.0,5.459]
[1745805731904,3.0,1767.7,1767.0,5.459]
[1745805732204,0.51810144,1767.6,1767.0,5.459]
[1745805732426,6.57810144,1767.6,1767.0,6.0049]
[1745805733531,6.06,1767.6,1767.0,6.0049]
[1745805734038,6.06,1767.6,1767.0,5.459]
[1745805734614,0.51999103,1767.5,1767.0,5.459]
[1745805736628,0.51999103,1767.6,1767.0,5.459]
[1745805737011,3.20508208,1767.5,1766.5,5.459]
[1745805737209,0.55,1767.2,1766.1,6.9524]
[1745805737533,8.66408208,1767.1,1766.2,0.69524]
[1745805737731,0.83220521,1767.0,1766.2,0.69524]
[1745805737918,3.83220521,1767.0,1766.2,0.69524]
[1745805738123,3.83220521,1767.0,1766.1,5.459]
[1745805738422,0.31221418,1766.9,1766.1,5.459]
[1745805739128,0.51999103,1766.8,1766.1,5.459]
[1745805739320,3.51999103,1766.8,1766.1,5.459]
[1745805739533,0.51999103,1766.8,1766.2,3.20508208]
[1745805739720,0.51999103,1766.8,1766.3,0.32050821]
[1745805740040,0.51999103,1766.8,1766.1,5.459]
[1745805740847,0.51999103,1766.8,1766.1,6.9234]
[1745805741043,0.51999103,1766.8,1766.4,3.20508208]
[1745805741243,0.51999103,1767.0,1766.4,3.20508208]
[1745805742246,0.51999103,1767.0,1766.6,1.5037]
[1745805742449,0.83220521,1767.3,1766.7,3.0]
[1745805742617,0.83220521,1767.3,1766.8,3.50508208]
[1745805743342,0.51999103,1767.3,1767.0,3.20508208]
[1745805743548,0.51999103,1767.6,1767.0,3.20508208]
[1745805744533,0.51999103,1767.7,1767.0,3.20508208]
[1745805745145,0.51999103,1767.7,1767.1,3.0]
[1745805745344,0.51999103,1767.7,1767.2,0.3]
[1745805745543,0.51999103,1767.8,1767.2,0.3]
[1745805746921,0.51999103,1767.8,1767.0,3.20508208]
[1745805747129,0.51999103,1767.8,1767.0,3.0]
[1745805747330,0.83258263,1767.8,1767.0,3.0]
[1745805747853,0.51999103,1767.7,1767.0,3.0]
[1745805748968,0.51999103,1767.7,1767.0,6.20508208]
[1745805749269,0.51999103,1767.7,1767.2,3.20508208]
[1745805749756,0.3125916,1767.8,1767.2,3.20508208]
[1745805750059,0.51999103,1768.0,1767.5,3.0]
[1745805750060,0.83258263,1768.0,1767.5,3.0]
[1745805750259,0.83258263,1768.0,1767.7,3.0]
[1745805750423,0.83258263,1768.0,1767.8,1.8082]
[1745805751054,3.4,1768.1,1767.8,1.8082]
[1745805751260,5.46,1768.6,1767.8,1.8082]
[1745805751959,0.83403518,1768.5,1767.8,1.8082]
[1745805752654,0.83403518,1768.5,1767.7,8.459]
[1745805752964,0.83403518,1768.5,1767.7,5.459]
[1745805753131,3.83403518,1768.5,1767.7,5.459]
[1745805754135,3.0,1768.2,1767.3,5.45]
[1745805754353,4.38403518,1768.5,1767.4,3.20508208]
[1745805754354,6.89403518,1768.5,1767.4,3.20508208]
[1745805754571,6.89403518,1768.5,1767.6,3.20508208]
[1745805754770,6.89403518,1768.5,1767.5,0.32050821]
[1745805755348,6.89403518,1768.5,1767.6,1.4949]
[1745805755663,0.83403518,1768.5,1767.7,3.0]
[1745805755978,0.83403518,1768.5,1767.8,5.45]
[1745805756159,0.83403518,1768.5,1767.9,0.545]
[1745805756679,0.83403518,1768.5,1768.1,1.4818]
[1745805757542,0.83403518,1768.5,1767.9,3.545]
[1745805759981,0.52127338,1768.5,1767.9,3.545]
[1745805760398,0.83403518,1768.7,1767.9,3.545]
[1745805760566,0.83403518,1768.7,1768.0,0.3545]
[1745805761282,0.83403518,1768.7,1768.1,3.0]
[1745805761476,0.52127338,1768.7,1768.2,1.398]
[1745805761791,0.52127338,1768.7,1768.2,10.05208208]
[1745805762084,0.52127338,1768.7,1768.3,1.00520821]
[1745805762581,3.4,1768.8,1768.3,1.00520821]
[1745805763200,3.4,1768.8,1768.5,3.0]
[1745805763392,0.01552374,1769.4,1768.7,3.0]
[1745805763689,0.01552374,1769.4,1768.8,5.449]
[1745805763983,0.01552374,1769.4,1768.8,5.9939]
[1745805766881,0.01552374,1769.4,1768.8,6.41345427]
[1745805769158,0.01552374,1769.4,1769.0,3.0]
[1745805769876,0.01552374,1769.4,1768.9,4.4638]
[1745805770151,0.01552374,1769.4,1769.0,3.20508208]
[1745805770352,0.01552374,1769.4,1769.3,4.3751]
[1745805770575,0.01552374,1769.4,1769.3,1.3751]
[1745805771907,0.01552374,1769.4,1769.3,4.3751]
[1745805772894,0.51851539,1770.2,1769.3,4.3751]
[1745805773055,0.51851539,1770.2,1769.4,3.20508208]
[1745805773255,3.20508208,1769.9,1769.0,5.446]
[1745805773480,3.0,1769.8,1769.0,5.446]
[1745805774474,0.51851539,1769.7,1769.0,5.446]
[1745805774802,0.51851539,1769.7,1769.1,6.9186]
[1745805774956,0.51851539,1769.7,1769.2,3.20508208]
[1745805775160,0.51851539,1769.7,1769.3,5.76650821]
[1745805775691,6.06,1770.0,1769.3,5.76650821]
[1745805776462,3.61304048,1770.5,1769.3,5.76650821]
[1745805776773,5.446,1770.4,1769.5,3.0]
[1745805777295,0.51898954,1770.3,1769.5,3.0]
[1745805777494,0.51898954,1770.3,1769.6,0.3]
[1745805777796,3.72407162,1770.3,1769.4,1.51]
[1745805777997,3.0,1770.2,1769.5,5.445]
[1745805778359,0.51898954,1770.1,1769.5,5.445]
[1745805778561,0.83056348,1770.1,1769.5,5.445]
[1745805779295,4.03564556,1770.1,1769.5,5.445]
[1745805779461,3.51898954,1770.0,1769.5,5.445]
[1745805779662,0.31157394,1769.9,1769.5,5.445]
[1745805780110,0.51898954,1769.8,1769.5,5.445]
[1745805780605,0.51898954,1769.8,1769.1,5.445]
[1745805780900,0.51898954,1769.8,1769.2,0.5445]
[1745805781107,0.51898954,1769.8,1769.1,5.445]
[1745805781284,0.51898954,1769.7,1769.1,5.445]
[1745805782285,0.51898954,1769.6,1769.1,5.445]
[1745805782997,3.91898954,1769.6,1769.1,5.445]
[1745805783206,0.51898954,1769.5,1769.1,5.445]
[1745805783387,0.51898954,1769.5,1769.2,2.0446]
[1745805785111,0.51898954,1769.5,1769.2,5.0446]
[1745805787183,3.4,1769.6,1769.2,5.0446]
[1745805788208,3.4,1769.6,1769.3,3.20508208]
[1745805788412,5.437,1770.3,1769.4,4.3905]
[1745805788704,5.437,1770.3,1769.5,5.87605]
[1745805788878,5.437,1770.3,1769.6,1.3905]
[1745805789069,0.52231238,1770.2,1769.6,1.3905]
[1745805789396,0.83565203,1770.2,1769.6,1.3905]
[1745805789605,0.83565203,1770.2,1769.6,2.117155]
[1745805789990,0.52231238,1770.1,1769.6,2.117155]
[1745805791202,0.52231238,1770.0,1769.6,2.117155]
[1745805791405,0.52231238,1770.0,1769.6,5.117155]
[1745805792204,0.52231238,1770.0,1769.8,3.0]
[1745805792395,0.52231238,1770.0,1769.9,1.7846]
[1745805792593,0.31333965,1770.4,1770.0,3.0]
[1745805792791,0.4079584,1770.5,1770.0,3.0]
[1745805793305,0.52334988,1770.4,1770.0,3.0]
[1745805793667,0.52334988,1770.4,1770.2,3.0]
[1745805793876,6.06,1771.4,1770.4,3.0]
[1745805794072,3.0,1771.4,1770.3,7.118]
[1745805794380,9.26508208,1771.3,1770.4,5.436]
[1745805794591,3.20508208,1771.1,1770.4,5.436]
[1745805794791,3.15508208,1771.1,1770.4,5.436]
[1745805794973,0.31364947,1771.2,1770.4,5.436]
[1745805795187,0.31364947,1771.2,1770.5,1.5067]
[1745805795588,3.51873155,1771.4,1770.5,2.52147821]
[1745805795909,0.31364947,1771.3,1770.4,5.436]
[1745805796129,6.37364947,1771.3,1770.6,1.4107]
[1745805796477,3.31364947,1771.2,1770.6,1.4107]
[1745805796722,0.31364947,1771.1,1770.6,1.4107]
[1745805797227,0.31349676,1771.1,1770.6,1.4107]
[1745805797875,0.31349676,1771.1,1770.8,1.3966]
[1745805798075,3.0,1771.7,1770.8,7.29176821]
[1745805798322,9.06,1771.7,1770.8,6.8316]
[1745805799080,0.31314061,1771.6,1770.8,6.8316]
[1745805799307,0.31314061,1771.6,1770.9,3.20508208]
[1745805799480,0.31314061,1771.6,1770.8,6.8316]
[1745805799684,0.31314061,1771.6,1770.8,7.24742579]
[1745805799885,0.31314061,1771.6,1770.8,8.29267658]
[1745805800218,3.75508208,1772.0,1770.8,8.29267658]
[1745805800219,0.28842844,1772.5,1771.6,1.4452]
[1745805800516,3.20508208,1773.3,1771.9,3.20508208]
[1745805800687,0.10359092,1773.3,1771.8,3.0]
[1745805800887,1.35243504,1773.2,1772.0,3.0]
[1745805801087,5.53736589,1773.2,1772.0,3.0]
[1745805801315,0.10336589,1773.2,1772.1,3.20508208]
[1745805801683,16.41617201,1774.3,1772.1,3.20508208]
[1745805801684,5.432,1773.4,1772.4,1.4339]
[1745805801887,5.432,1773.3,1772.4,1.4339]
[1745805802200,0.4079584,1774.0,1772.5,3.20508208]
[1745805802398,5.53559092,1773.9,1772.6,3.20508208]
[1745805802812,3.0,1773.8,1772.6,3.20508208]
[1745805803090,6.20508208,1773.8,1772.5,5.432]
[1745805803414,6.20508208,1773.8,1772.4,5.10288029]
[1745805803415,0.79931662,1773.7,1772.2,1.4634]
[1745805803602,3.55,1773.5,1772.3,3.20508208]
[1745805803804,3.55,1773.3,1772.3,3.20508208]
[1745805804114,0.10359092,1773.7,1772.5,3.20508208]
[1745805804640,5.432,1773.6,1772.5,3.20508208]
[1745805804792,3.0,1773.5,1772.5,4.21777029]
[1745805804990,3.0,1773.5,1772.4,6.9218]
[1745805805295,0.10359092,1773.7,1772.6,3.20508208]
[1745805805512,0.10359092,1773.7,1772.9,1.3992]
[1745805805513,3.20508208,1773.4,1772.9,1.3992]
[1745805805695,3.20508208,1773.0,1772.2,1.3992]
[1745805806297,3.0,1772.9,1772.2,1.3992]
[1745805806486,3.0,1772.7,1771.9,6.8302]
[1745805806692,3.0,1772.7,1771.9,1.3992]
[1745805807237,3.0,1772.5,1771.9,1.3992]
[1745805807533,3.55,1772.7,1771.9,1.3992]
[1745805807838,3.0,1772.5,1771.9,1.3992]
[1745805808731,3.0,1772.5,1771.7,1.4258]
[1745805809326,3.0,1772.5,1771.7,2.11148]
[1745805809710,3.0,1772.5,1771.7,1.4258]
[1745805810542,9.06,1772.5,1771.7,1.4258]
[1745805811035,9.70991251,1772.4,1771.4,1.369]
[1745805811799,0.55,1772.2,1771.2,5.43]
[1745805812134,3.55,1772.0,1771.2,5.43]
[1745805812353,3.55,1772.0,1771.2,5.8545267]
[1745805812354,3.0,1772.0,1771.2,5.8545267]
[1745805812501,5.43,1772.0,1771.2,6.59125937]
[1745805812698,3.0,1772.3,1771.2,6.59125937]
[1745805813001,8.43,1772.3,1771.3,1.4905]
[1745805813442,3.09991251,1772.0,1771.3,1.4905]
[1745805813603,3.09991251,1771.7,1771.1,1.4932]
[1745805813799,8.425,1771.9,1771.1,1.4932]
[1745805814027,3.0,1771.9,1771.1,1.4932]
[1745805815140,3.0,1771.9,1771.1,1.94252]
[1745805816151,3.0,1771.9,1771.1,1.4932]
[1745805816824,3.09991251,1772.1,1771.1,1.4932]
[1745805817139,5.425,1772.8,1771.8,1.4802]
[1745805818938,5.425,1772.7,1771.8,1.4802]
[1745805819612,3.0,1772.9,1771.8,1.4802]
[1745805819934,0.55,1772.9,1771.8,1.4802]
[1745805820145,3.55,1772.9,1771.8,1.92822]
[1745805820340,3.55,1772.9,1771.8,1.4802]
[1745805821448,3.55,1772.6,1771.8,1.4802]
[1745805821646,3.55,1772.4,1771.8,1.4802]
[1745805821816,3.55,1772.4,1771.6,6.9028]
[1745805822452,6.64991251,1772.4,1771.6,6.9028]
[1745805822651,3.09991251,1772.1,1771.6,6.9028]
[1745805823125,6.64991251,1772.4,1771.6,6.9028]
[1745805823528,6.64991251,1772.4,1771.6,6.89967036]
[1745805824430,12.70991251,1772.4,1771.6,6.89967036]
[1745805824749,12.70991251,1772.4,1771.6,1.4778]
[1745805825650,3.09991251,1772.1,1771.3,1.4109]
[1745805825819,5.424,1772.0,1771.3,2.09439]
[1745805826028,5.424,1772.0,1771.3,1.4109]
[1745805826514,0.55,1771.9,1771.3,1.4109]
[1745805828665,9.61,1771.9,1771.3,1.4109]
[1745805828828,9.61,1771.9,1770.9,1.3791]
[1745805829652,12.79536232,1771.9,1770.9,1.3791]
[1745805830233,0.55,1771.6,1770.9,1.3791]
[1745805831628,5.425,1771.7,1770.9,1.3791]
[1745805832433,5.425,1771.6,1770.9,1.3791]
[1745805837637,12.24536232,1771.9,1771.0,1.1339]
[1745805837638,6.06,1771.9,1771.0,1.1339]
[1745805837968,11.486,1771.9,1771.2,1.1339]
[1745805838538,0.55,1771.8,1771.2,1.1339]
[1745805839843,3.73536232,1771.8,1771.2,1.1339]
[1745805840545,0.55,1771.8,1771.2,1.1339]
[1745805841470,0.55,1771.8,1770.9,1.2108]
[1745805841471,3.18536232,1771.4,1770.9,1.2108]
[1745805841651,0.55,1771.3,1770.9,1.2108]
[1745805841853,9.61,1771.3,1770.9,1.2108]
[1745805843560,6.61,1771.3,1770.9,1.2108]
[1745805843767,3.0,1771.6,1770.9,1.2108]
[1745805843967,6.06,1771.6,1770.9,1.2108]
[1745805844580,11.484,1771.6,1770.9,1.2108]
[1745805844788,6.06,1771.6,1770.9,1.2108]
[1745805844992,11.484,1771.6,1770.9,1.2108]
[1745805845356,6.06,1771.6,1770.9,1.2108]
[1745805845557,11.484,1771.6,1770.9,1.2108]
[1745805846185,6.06,1771.8,1770.9,1.2108]
[1745805846388,5.424,1771.7,1771.0,1.2093]
[1745805848264,5.424,1771.7,1771.0,1.87263]
[1745805848464,5.424,1771.7,1771.1,1.21]
[1745805850489,0.55,1771.6,1771.1,1.21]
[1745805851784,5.424,1771.7,1771.1,1.21]
[1745805852958,11.484,1771.8,1771.1,1.21]
[1745805853371,0.55,1771.7,1771.1,1.21]
[1745805854296,11.484,1771.8,1771.1,1.21]
[1745805855930,5.424,1771.8,1771.1,1.21]
[1745805857181,6.06,1771.9,1771.1,1.21]
[1745805857501,5.424,1771.8,1771.1,1.21]
[1745805858099,5.424,1771.8,1771.1,0.416073]
[1745805858301,5.424,1771.8,1771.2,1.1814]
[1745805858996,6.06,1771.9,1771.2,1.1814]
[1745805859207,5.423,1771.8,1771.2,1.1814]
[1745805860185,0.55,1771.7,1771.2,1.1814]
[1745805860370,3.55,1771.7,1771.2,1.1814]
[1745805860912,0.55,1771.7,1771.2,1.1814]
[1745805862013,17.44169243,1772.5,1771.2,1.1814]
[1745805862014,3.0,1772.1,1771.2,1.1814]
[1745805862170,5.423,1772.1,1771.2,1.1814]